fUSD/lending_fUSD_20260517
["ID","MTS","AMOUNT","RATE_DAILY","PERIOD"]
[422516682,1779018647000,-1791.55036629,0.00036377,2]
[422516683,1779018647000,-300.0,0.00036377,2]
[422516684,1779018647000,-311.04198967,0.00036377,2]
[422516689,1779018647000,-300.0,0.00036377,2]
[422516690,1779018647000,-300.0,0.00036377,2]
[422516688,1779018647000,-452.10208933,0.00036377,2]
[422516686,1779018647000,-464.05309097,0.00036377,2]
[422516685,1779018647000,-300.0,0.00036377,2]
[422516687,1779018647000,-577.47815809,0.00036377,2]
[422516691,1779018647000,-300.0,0.00036377,2]
[422516693,1779018647000,-300.0,0.00036377,2]
[422516696,1779018647000,-300.0,0.00036377,2]
[422516694,1779018647000,-484.30212364,0.00036377,2]
[422516695,1779018647000,-309.96996065,0.00036377,2]
[422516699,1779018647000,-300.0,0.00036377,2]
[422516625,1779018647000,-300.0,0.00036377,2]
[422516673,1779018647000,-1913.25849317,0.00036377,2]
[422516670,1779018647000,-300.0,0.00036377,2]
[422516698,1779018647000,-300.0,0.00036377,2]
[422516666,1779018647000,-300.0,0.00036377,2]
[422516697,1779018647000,-300.0,0.00036377,2]
[422516628,1779018647000,-484.30212364,0.00036377,2]
[422516633,1779018647000,-1095.24427681,0.00036377,2]
[422516634,1779018647000,-300.0,0.00036377,2]
[422516635,1779018647000,-300.0,0.00036377,2]
[422516639,1779018647000,-496.12427771,0.00036377,2]
[422516632,1779018647000,-300.0,0.00036377,2]
[422516641,1779018647000,-498.47415717,0.00036377,2]
[422516638,1779018647000,-300.0,0.00036377,2]
[422516636,1779018647000,-300.0,0.00036377,2]
[422516637,1779018647000,-476.60259076,0.00036377,2]
[422516643,1779018647000,-300.0,0.00036377,2]
[422516644,1779018647000,-300.0,0.00036377,2]
[422516624,1779018647000,-300.0,0.00036377,2]
[422516646,1779018647000,-492.91797782,0.00036377,2]
[422516664,1779018647000,-893.8052833,0.00036377,2]
[422516667,1779018647000,-300.0,0.00036377,2]
[422516665,1779018647000,-726.3731759,0.00036377,2]
[422516660,1779018647000,-300.0,0.00036377,2]
[422516650,1779018647000,-379.96354823,0.00036377,2]
[422516656,1779018647000,-604.73492277,0.00036377,2]
[422516668,1779018647000,-300.70672347,0.00036377,2]
[422516658,1779018647000,-300.00000001,0.00036377,2]
[422516663,1779018647000,-527.9795525,0.00036377,2]
[422516654,1779018647000,-300.0,0.00036377,2]
[422516652,1779018647000,-300.0,0.00036377,2]
[422516648,1779018647000,-334.51679478,0.00036377,2]
[422516662,1779018647000,-300.0,0.00036377,2]
[422516737,1779018648000,-1270.0,0.00037192,2]
[422516738,1779018648000,-1223.0,0.00037192,2]
[422516736,1779018648000,-927.0,0.00037192,2]
[422516734,1779018648000,-625.0,0.00037192,2]
[422516730,1779018648000,-323.32,0.00037,15]
[422516733,1779018648000,-501.0,0.00037138,12]
[422516731,1779018648000,-2131.1947,0.00037083,2]
[422516732,1779018648000,-1404.92,0.000371,14]
[422516742,1779018648000,-466.99,0.000372,7]
[422516729,1779018648000,-230.0,0.00037,2]
[422516735,1779018648000,-3543.0,0.00037192,2]
[422516741,1779018648000,-1404.92,0.000372,14]
[422516745,1779018648000,-1000.0,0.00037346,44]
[422516739,1779018648000,-930.0,0.00037192,2]
[422516744,1779018648000,-2131.1947,0.00037342,2]
[422516754,1779018648000,-386.98,0.0003768,30]
[422516743,1779018648000,-154.29214092,0.000372,120]
[422516755,1779018648000,-150.0,0.00037694,2]
[422516747,1779018648000,-242.27,0.000374,60]
[422516748,1779018648000,-875.12,0.000374,120]
[422516752,1779018648000,-2131.1947,0.00037602,2]
[422516749,1779018648000,-218.77,0.000374,60]
[422516746,1779018648000,-969.11,0.000374,120]
[422516725,1779018648000,-1735.5,0.000369,120]
[422516753,1779018648000,-159.26,0.00037656,60]
[422516740,1779018648000,-417.0,0.00037192,2]
[422516726,1779018648000,-227.744999,0.00036939,34]
[422516711,1779018648000,-2131.1947,0.00036564,2]
[422516722,1779018648000,-150.0,0.00036888,7]
[422516750,1779018648000,-9353.44893307,0.00037536,2]
[422516703,1779018648000,-500.0,0.00036399,120]
[422516701,1779018648000,-958.33,0.00036399,120]
[422516704,1779018648000,-614.0,0.000364,30]
[422516702,1779018648000,-823.2,0.00036399,30]
[422516700,1779018648000,-300.0,0.00036377,2]
[422516715,1779018648000,-150.0,0.00036888,7]
[422516705,1779018648000,-379.57,0.000364,30]
[422516716,1779018648000,-150.0,0.00036888,7]
[422516706,1779018648000,-1000.0,0.0003641,32]
[422516707,1779018648000,-501.0,0.00036424,12]
[422516708,1779018648000,-500.0,0.00036438,2]
[422516713,1779018648000,-482.01,0.00036715,60]
[422516714,1779018648000,-2131.1947,0.00036824,2]
[422516710,1779018648000,-293.86404168,0.00036539,2]
[422516712,1779018648000,-161.80886573,0.00036635,7]
[422516709,1779018648000,-172.54,0.00036531,120]
[422516719,1779018648000,-151.31876581,0.00036888,7]
[422516720,1779018648000,-174.30859709,0.00036888,7]
[422516718,1779018648000,-150.0,0.00036888,7]
[422516724,1779018648000,-150.0,0.00036888,7]
[422516723,1779018648000,-150.0,0.00036888,7]
[422516717,1779018648000,-217.9313898,0.00036888,7]
[422516728,1779018648000,-161.0,0.00037,120]
[422516721,1779018648000,-150.0,0.00036888,7]
[422516727,1779018648000,-2532.37722821,0.00036999,2]
[422516751,1779018648000,-614.0,0.000376,30]
[422516757,1779018648000,-195.207,0.00037698,49]
[422516756,1779018648000,-2550.86,0.00037698,49]
[422516785,1779018648000,-159.26,0.00038156,60]
[422516794,1779018648000,-1000.0,0.00038315,103]
[422516790,1779018648000,-161.45738708,0.000383,120]
[422516792,1779018648000,-4872.19622883,0.000383,30]
[422516788,1779018648000,-1000.0,0.00038294,51]
[422516787,1779018648000,-159.26,0.00038256,60]
[422516791,1779018648000,-4872.19622885,0.000383,30]
[422516796,1779018648000,-1838.0,0.00038329,120]
[422516798,1779018648000,-2306.0,0.00038329,120]
[422516795,1779018648000,-1838.0,0.00038329,120]
[422516805,1779018648000,-500.0,0.00038356,2]
[422516804,1779018648000,-500.0,0.00038356,2]
[422516799,1779018648000,-159.26,0.00038356,60]
[422516806,1779018648000,-500.0,0.00038356,2]
[422516801,1779018648000,-500.0,0.00038356,120]
[422516802,1779018648000,-500.0,0.00038356,120]
[422516803,1779018648000,-500.0,0.00038356,2]
[422516800,1779018648000,-500.0,0.00038356,120]
[422516807,1779018648000,-500.0,0.00038356,2]
[422516811,1779018648000,-500.0,0.00038356,2]
[422516813,1779018648000,-500.0,0.00038356,2]
[422516810,1779018648000,-500.0,0.00038356,2]
[422516809,1779018648000,-500.0,0.00038356,2]
[422516808,1779018648000,-500.0,0.00038356,2]
[422516812,1779018648000,-500.0,0.00038356,2]
[422516789,1779018648000,-161.45738709,0.000383,120]
[422516784,1779018648000,-1290.8,0.00038125,30]
[422516797,1779018648000,-2306.0,0.00038329,120]
[422516786,1779018648000,-150.0,0.00038254,7]
[422516793,1779018648000,-4872.19622883,0.000383,30]
[422516767,1779018648000,-2131.1947,0.00037861,2]
[422516768,1779018648000,-515.33678161,0.00037866,2]
[422516759,1779018648000,-159.26,0.00037756,60]
[422516758,1779018648000,-249.69730927,0.00037748,60]
[422516765,1779018648000,-501.0,0.00037852,13]
[422516760,1779018648000,-174.64313585,0.00037791,30]
[422516764,1779018648000,-1000.0,0.00037839,86]
[422516766,1779018648000,-159.26,0.00037856,60]
[422516762,1779018648000,-1404.92,0.000378,14]
[422516761,1779018648000,-379.57,0.000378,30]
[422516769,1779018648000,-1735.5,0.000379,120]
[422516771,1779018648000,-160.0,0.00038,120]
[422516763,1779018648000,-350.0,0.00037808,90]
[422516783,1779018648000,-9607.43100594,0.000381,33]
[422516782,1779018648000,-190.91579578,0.00038069,30]
[422516772,1779018648000,-242.27,0.00038,90]
[422516779,1779018648000,-168.93,0.0003802,2]
[422516774,1779018648000,-228.0,0.00038,30]
[422516778,1779018648000,-153.0,0.00038,120]
[422516773,1779018648000,-209.505714,0.00038,39]
[422516777,1779018648000,-218.77,0.00038,90]
[422516776,1779018648000,-151.0,0.00038,120]
[422516770,1779018648000,-159.26,0.00037956,60]
[422516781,1779018648000,-159.26,0.00038056,60]
[422516780,1779018648000,-158.73484725,0.00038029,30]
[422516775,1779018648000,-200.0,0.00038,15]
[422516851,1779018649000,-500.0,0.00038356,2]
[422516852,1779018649000,-500.0,0.00038356,2]
[422516855,1779018649000,-500.0,0.00038356,2]
[422516849,1779018649000,-500.0,0.00038356,2]
[422516847,1779018649000,-500.0,0.00038356,2]
[422516856,1779018649000,-500.0,0.00038356,2]
[422516845,1779018649000,-500.0,0.00038356,2]
[422516848,1779018649000,-500.0,0.00038356,2]
[422516854,1779018649000,-500.0,0.00038356,2]
[422516853,1779018649000,-500.0,0.00038356,2]
[422516857,1779018649000,-500.0,0.00038356,2]
[422516850,1779018649000,-500.0,0.00038356,2]
[422516860,1779018649000,-300.0,0.00038356,2]
[422516876,1779018649000,-300.0,0.00038376,2]
[422516861,1779018649000,-300.0,0.00038356,2]
[422516866,1779018649000,-300.0,0.00038356,2]
[422516858,1779018649000,-290.81570487,0.00038356,2]
[422516868,1779018649000,-300.0,0.00038356,2]
[422516865,1779018649000,-300.0,0.00038356,2]
[422516867,1779018649000,-300.0,0.00038356,2]
[422516864,1779018649000,-300.0,0.00038356,2]
[422516869,1779018649000,-300.0,0.00038356,2]
[422516862,1779018649000,-300.0,0.00038356,2]
[422516863,1779018649000,-300.0,0.00038356,2]
[422516870,1779018649000,-300.0,0.00038356,2]
[422516871,1779018649000,-300.0,0.00038356,2]
[422516846,1779018649000,-500.0,0.00038356,2]
[422516859,1779018649000,-300.0,0.00038356,2]
[422516838,1779018649000,-500.0,0.00038356,2]
[422516818,1779018649000,-500.0,0.00038356,2]
[422516841,1779018649000,-500.0,0.00038356,2]
[422516816,1779018649000,-500.0,0.00038356,2]
[422516881,1779018649000,-309.34,0.00038376,2]
[422516817,1779018649000,-500.0,0.00038356,2]
[422516814,1779018649000,-500.0,0.00038356,2]
[422516831,1779018649000,-500.0,0.00038356,2]
[422516820,1779018649000,-500.0,0.00038356,2]
[422516830,1779018649000,-500.0,0.00038356,2]
[422516822,1779018649000,-500.0,0.00038356,2]
[422516819,1779018649000,-500.0,0.00038356,2]
[422516825,1779018649000,-500.0,0.00038356,2]
[422516821,1779018649000,-500.0,0.00038356,2]
[422516827,1779018649000,-500.0,0.00038356,2]
[422516823,1779018649000,-500.0,0.00038356,2]
[422516824,1779018649000,-500.0,0.00038356,2]
[422516829,1779018649000,-500.0,0.00038356,2]
[422516826,1779018649000,-500.0,0.00038356,2]
[422516828,1779018649000,-500.0,0.00038356,2]
[422516833,1779018649000,-500.0,0.00038356,2]
[422516844,1779018649000,-500.0,0.00038356,2]
[422516832,1779018649000,-479.53604544,0.00038356,2]
[422516843,1779018649000,-500.0,0.00038356,2]
[422516835,1779018649000,-500.0,0.00038356,2]
[422516837,1779018649000,-500.0,0.00038356,2]
[422516836,1779018649000,-500.0,0.00038356,2]
[422516840,1779018649000,-500.0,0.00038356,2]
[422516834,1779018649000,-500.0,0.00038356,2]
[422516839,1779018649000,-500.0,0.00038356,2]
[422516842,1779018649000,-500.0,0.00038356,2]
[422516872,1779018649000,-300.0,0.00038356,2]
[422516815,1779018649000,-500.0,0.00038356,2]
[422516878,1779018649000,-300.0,0.00038376,2]
[422516909,1779018649000,-200.0,0.00038457,2]
[422516919,1779018649000,-157.0,0.00038457,2]
[422516911,1779018649000,-200.0,0.00038457,2]
[422516915,1779018649000,-200.0,0.00038457,2]
[422516910,1779018649000,-200.0,0.00038457,2]
[422516914,1779018649000,-200.0,0.00038457,2]
[422516918,1779018649000,-200.0,0.00038457,2]
[422516913,1779018649000,-200.0,0.00038457,2]
[422516912,1779018649000,-200.0,0.00038457,2]
[422516917,1779018649000,-200.0,0.00038457,2]
[422516916,1779018649000,-200.0,0.00038457,2]
[422516920,1779018649000,-200.0,0.00038457,2]
[422516922,1779018649000,-200.0,0.00038457,2]
[422516908,1779018649000,-200.0,0.00038457,2]
[422516921,1779018649000,-200.0,0.00038457,2]
[422516923,1779018649000,-200.0,0.00038457,2]
[422516930,1779018649000,-200.0,0.00038457,2]
[422516925,1779018649000,-200.0,0.00038457,2]
[422516928,1779018649000,-200.0,0.00038457,2]
[422516924,1779018649000,-200.0,0.00038457,2]
[422516926,1779018649000,-200.0,0.00038457,2]
[422516927,1779018649000,-200.0,0.00038457,2]
[422516929,1779018649000,-200.0,0.00038457,2]
[422516935,1779018649000,-200.0,0.00038457,2]
[422516933,1779018649000,-200.0,0.00038457,2]
[422516936,1779018649000,-200.0,0.00038457,2]
[422516934,1779018649000,-200.0,0.00038457,2]
[422516873,1779018649000,-163.53372958,0.00038356,2]
[422516931,1779018649000,-200.0,0.00038457,2]
[422516905,1779018649000,-200.0,0.00038457,2]
[422516932,1779018649000,-200.0,0.00038457,2]
[422516904,1779018649000,-200.0,0.00038457,2]
[422516902,1779018649000,-200.0,0.00038457,2]
[422516874,1779018649000,-227.744999,0.00038374,41]
[422516877,1779018649000,-300.0,0.00038376,2]
[422516879,1779018649000,-300.0,0.00038376,2]
[422516880,1779018649000,-300.0,0.00038376,2]
[422516883,1779018649000,-1000.0,0.00038409,105]
[422516882,1779018649000,-153.0,0.000384,120]
[422516893,1779018649000,-500.0,0.00038409,120]
[422516894,1779018649000,-500.0,0.00038409,120]
[422516884,1779018649000,-500.0,0.00038409,120]
[422516892,1779018649000,-500.0,0.00038409,120]
[422516885,1779018649000,-500.0,0.00038409,120]
[422516888,1779018649000,-500.0,0.00038409,120]
[422516887,1779018649000,-793.8003679,0.00038409,120]
[422516875,1779018649000,-300.0,0.00038376,2]
[422516890,1779018649000,-500.0,0.00038409,120]
[422516886,1779018649000,-500.0,0.00038409,120]
[422516906,1779018649000,-200.0,0.00038457,2]
[422516898,1779018649000,-500.0,0.00038409,120]
[422516903,1779018649000,-200.0,0.00038457,2]
[422516900,1779018649000,-883.7996865,0.00038409,120]
[422516896,1779018649000,-500.0,0.00038409,120]
[422516901,1779018649000,-159.26,0.00038456,120]
[422516889,1779018649000,-500.0,0.00038409,120]
[422516895,1779018649000,-500.0,0.00038409,120]
[422516891,1779018649000,-500.0,0.00038409,120]
[422516899,1779018649000,-500.0,0.00038409,120]
[422516907,1779018649000,-200.0,0.00038457,2]
[422516897,1779018649000,-500.0,0.00038409,120]
[422516985,1779018650000,-958.33,0.00038926,120]
[422516964,1779018650000,-501.0,0.00038567,14]
[422516966,1779018650000,-159.26,0.00038656,120]
[422516968,1779018650000,-159.26,0.00038756,120]
[422516969,1779018650000,-614.0,0.000388,30]
[422516973,1779018650000,-877.4772,0.00038874,30]
[422516983,1779018650000,-958.33,0.00038926,120]
[422516981,1779018650000,-151.0,0.00038923,14]
[422516974,1779018650000,-153.0,0.000389,120]
[422516963,1779018650000,-159.26,0.00038556,120]
[422516967,1779018650000,-278.0,0.0003875,120]
[422516977,1779018650000,-1735.5,0.000389,120]
[422516982,1779018650000,-157.33,0.00038925,120]
[422516984,1779018650000,-958.33,0.00038926,120]
[422516975,1779018650000,-2140.93489132,0.000389,7]
[422516976,1779018650000,-2500.0,0.000389,14]
[422516978,1779018650000,-500.91667493,0.00038916,2]
[422516979,1779018650000,-359.71931752,0.0003892,14]
[422516980,1779018650000,-151.0,0.00038923,14]
[422516987,1779018650000,-823.2,0.00038926,30]
[422516997,1779018650000,-151.71000129,0.00038942,120]
[422516986,1779018650000,-823.2,0.00038926,30]
[422516971,1779018650000,-469.23882208,0.00038826,2]
[422516993,1779018650000,-780755.885325,0.00038926,2]
[422516972,1779018650000,-159.26,0.00038856,120]
[422516965,1779018650000,-482.01,0.00038572,60]
[422516946,1779018650000,-200.0,0.00038457,2]
[422516960,1779018650000,-500.0,0.00038534,120]
[422516989,1779018650000,-500.0,0.00038926,120]
[422516944,1779018650000,-200.0,0.00038457,2]
[422516937,1779018650000,-200.0,0.00038457,2]
[422516938,1779018650000,-200.0,0.00038457,2]
[422516939,1779018650000,-200.0,0.00038457,2]
[422516943,1779018650000,-200.0,0.00038457,2]
[422516945,1779018650000,-200.0,0.00038457,2]
[422516941,1779018650000,-200.0,0.00038457,2]
[422516942,1779018650000,-200.0,0.00038457,2]
[422516940,1779018650000,-200.0,0.00038457,2]
[422516947,1779018650000,-200.0,0.00038457,2]
[422516948,1779018650000,-200.0,0.00038457,2]
[422516949,1779018650000,-200.0,0.00038457,2]
[422516951,1779018650000,-200.0,0.00038457,2]
[422516954,1779018650000,-200.0,0.00038457,2]
[422516956,1779018650000,-336.0,0.00038457,2]
[422516950,1779018650000,-200.0,0.00038457,2]
[422516958,1779018650000,-477.6,0.000385,31]
[422516955,1779018650000,-200.0,0.00038457,2]
[422516952,1779018650000,-200.0,0.00038457,2]
[422516953,1779018650000,-200.0,0.00038457,2]
[422516957,1779018650000,-4001.4436199,0.00038464,120]
[422516959,1779018650000,-278.0,0.000385,120]
[422516962,1779018650000,-958.358,0.00038534,120]
[422516961,1779018650000,-500.0,0.00038534,120]
[422516970,1779018650000,-17042.87754974,0.00038826,2]
[422516992,1779018650000,-3181.588162,0.00038926,2]
[422516995,1779018650000,-150.0,0.00038937,7]
[422517047,1779018650000,-278.0,0.000395,120]
[422517029,1779018650000,-150.0,0.00039412,2]
[422517027,1779018650000,-2313.0,0.000394,11]
[422517022,1779018650000,-209.505714,0.00039333,46]
[422517024,1779018650000,-700.0,0.00039356,60]
[422517023,1779018650000,-500.0,0.00039356,60]
[422517025,1779018650000,-500.0,0.00039356,60]
[422517028,1779018650000,-150.0,0.00039412,2]
[422517032,1779018650000,-150.0,0.00039412,2]
[422517030,1779018650000,-150.0,0.00039412,2]
[422517031,1779018650000,-209.63176895,0.00039412,2]
[422517033,1779018650000,-150.0,0.00039412,2]
[422517026,1779018650000,-163.0,0.00039399,11]
[422517035,1779018650000,-150.0,0.00039412,2]
[422517037,1779018650000,-160.92141633,0.00039425,30]
[422517044,1779018650000,-2557.44843548,0.00039429,11]
[422517039,1779018650000,-2557.44843548,0.00039429,11]
[422517038,1779018650000,-2557.44843549,0.00039429,11]
[422517043,1779018650000,-2557.44843548,0.00039429,11]
[422517040,1779018650000,-2557.44843548,0.00039429,11]
[422517042,1779018650000,-2557.44843548,0.00039429,11]
[422517041,1779018650000,-2557.44843548,0.00039429,11]
[422517046,1779018650000,-174.64313585,0.00039443,30]
[422517045,1779018650000,-2557.44843548,0.00039429,11]
[422516990,1779018650000,-500.0,0.00038926,120]
[422517034,1779018650000,-150.0,0.00039412,2]
[422517019,1779018650000,-958.33,0.00039333,120]
[422517036,1779018650000,-150.0,0.00039412,2]
[422517020,1779018650000,-823.2,0.00039333,30]
[422516988,1779018650000,-823.2,0.00038926,30]
[422517018,1779018650000,-153.0,0.000393,120]
[422516991,1779018650000,-500.0,0.00038926,120]
[422516996,1779018650000,-150.0,0.00038937,7]
[422516994,1779018650000,-1582.847602,0.00038926,2]
[422516999,1779018650000,-10000.0,0.0003895,2]
[422516998,1779018650000,-2000.0,0.0003895,2]
[422517000,1779018650000,-159.34035004,0.00038956,120]
[422517010,1779018650000,-2339.1459,0.00039109,30]
[422517002,1779018650000,-161.0,0.00039,120]
[422517009,1779018650000,-151.0,0.000391,120]
[422517003,1779018650000,-228.0,0.00039,30]
[422517004,1779018650000,-200.0,0.00039,16]
[422517001,1779018650000,-1000.0,0.00038989,116]
[422517005,1779018650000,-379.57,0.00039,30]
[422517021,1779018650000,-500.0,0.00039333,120]
[422517014,1779018650000,-350.0,0.00039249,2]
[422517015,1779018650000,-278.0,0.0003925,120]
[422517017,1779018650000,-334.5992,0.000393,120]
[422517012,1779018650000,-1000.0,0.00039183,2]
[422517016,1779018650000,-501.0,0.00039281,15]
[422517011,1779018650000,-350.0,0.00039126,4]
[422517008,1779018650000,-1000.0,0.00039063,106]
[422517006,1779018650000,-160.0,0.00039,120]
[422517007,1779018650000,-278.0,0.00039,120]
[422517013,1779018650000,-400.0,0.00039183,2]
[422517087,1779018651000,-500.0,0.00039999,7]
[422517088,1779018651000,-500.0,0.00039999,7]
[422517083,1779018651000,-500.0,0.00039999,7]
[422517082,1779018651000,-500.0,0.00039999,7]
[422517091,1779018651000,-500.0,0.00039999,7]
[422517081,1779018651000,-500.0,0.00039999,7]
[422517084,1779018651000,-500.0,0.00039999,7]
[422517080,1779018651000,-500.0,0.00039999,7]
[422517073,1779018651000,-1572.578401,0.000399,33]
[422517076,1779018651000,-163.0,0.00039942,11]
[422517086,1779018651000,-500.0,0.00039999,7]
[422517085,1779018651000,-500.0,0.00039999,7]
[422517090,1779018651000,-500.0,0.00039999,7]
[422517100,1779018651000,-427.20654019,0.00039999,31]
[422517092,1779018651000,-500.0,0.00039999,7]
[422517095,1779018651000,-500.0,0.00039999,31]
[422517097,1779018651000,-500.0,0.00039999,31]
[422517094,1779018651000,-500.0,0.00039999,31]
[422517093,1779018651000,-451.51,0.00039999,7]
[422517096,1779018651000,-500.0,0.00039999,31]
[422517101,1779018651000,-500.0,0.00039999,31]
[422517098,1779018651000,-500.0,0.00039999,31]
[422517102,1779018651000,-500.0,0.00039999,31]
[422517099,1779018651000,-296.52784863,0.00039999,31]
[422517104,1779018651000,-500.0,0.00039999,31]
[422517070,1779018651000,-469.23882206,0.00039863,2]
[422517089,1779018651000,-500.0,0.00039999,7]
[422517075,1779018651000,-160.92141633,0.00039918,30]
[422517110,1779018651000,-614.0,0.0004,30]
[422517071,1779018651000,-1000.0,0.00039883,48]
[422517052,1779018651000,-1000.0,0.00039637,47]
[422517050,1779018651000,-250.0,0.000396,30]
[422517053,1779018651000,-387.09,0.00039653,30]
[422517055,1779018651000,-1586.0,0.00039719,11]
[422517054,1779018651000,-1586.0,0.00039719,11]
[422517048,1779018651000,-150.0,0.00039579,2]
[422517051,1779018651000,-150.0,0.0003962,7]
[422517049,1779018651000,-160.92141633,0.00039589,30]
[422517056,1779018651000,-163.0,0.00039719,11]
[422517057,1779018651000,-2313.0,0.00039719,11]
[422517058,1779018651000,-2313.0,0.00039719,11]
[422517061,1779018651000,-2313.0,0.0003972,11]
[422517074,1779018651000,-1735.5,0.000399,120]
[422517059,1779018651000,-2313.0,0.0003972,11]
[422517060,1779018651000,-2313.0,0.0003972,11]
[422517063,1779018651000,-150.0,0.00039728,2]
[422517064,1779018651000,-5651.07378383,0.00039746,2]
[422517065,1779018651000,-278.0,0.0003975,120]
[422517067,1779018651000,-150.63,0.000398,30]
[422517077,1779018651000,-501.0,0.00039996,16]
[422517068,1779018651000,-153.0,0.000398,120]
[422517078,1779018651000,-500.0,0.00039999,7]
[422517079,1779018651000,-500.0,0.00039999,7]
[422517066,1779018651000,-160.92141633,0.00039753,30]
[422517069,1779018651000,-17042.87754972,0.00039863,2]
[422517072,1779018651000,-151.32304821,0.00039886,2]
[422517062,1779018651000,-300.0,0.00039726,120]
[422517109,1779018651000,-1726.61899881,0.0004,120]
[422517158,1779018651000,-317.4696945,0.00040262,120]
[422517107,1779018651000,-1000.0,0.00039999,16]
[422517139,1779018651000,-500.0,0.00040178,60]
[422517141,1779018651000,-954.58977359,0.00040183,120]
[422517143,1779018651000,-3543.0,0.00040192,2]
[422517140,1779018651000,-700.0,0.00040178,60]
[422517142,1779018651000,-625.0,0.00040192,2]
[422517144,1779018651000,-927.0,0.00040192,2]
[422517151,1779018651000,-293.86404168,0.00040204,2]
[422517150,1779018651000,-153.0,0.000402,120]
[422517147,1779018651000,-930.0,0.00040192,2]
[422517146,1779018651000,-1223.0,0.00040192,2]
[422517148,1779018651000,-417.0,0.00040192,2]
[422517149,1779018651000,-151.0,0.000402,120]
[422517135,1779018651000,-278.0,0.0004011,120]
[422517152,1779018651000,-160.92141633,0.00040219,30]
[422517153,1779018651000,-20359.9147567,0.00040232,15]
[422517156,1779018651000,-2107.96,0.00040235,2]
[422517157,1779018651000,-349.28627171,0.0004025,120]
[422517154,1779018651000,-278.0,0.00040234,120]
[422517159,1779018651000,-400.0,0.0004027,3]
[422517162,1779018651000,-236.6,0.0004029,60]
[422517155,1779018651000,-278.0,0.00040234,120]
[422517161,1779018651000,-2313.0,0.00040286,11]
[422517160,1779018651000,-403.2076737,0.0004027,3]
[422517164,1779018651000,-328.94,0.0004029,60]
[422517165,1779018651000,-728.65,0.0004029,60]
[422517106,1779018651000,-313.78309455,0.00039999,31]
[422517163,1779018651000,-4207.55,0.0004029,60]
[422517136,1779018651000,-278.0,0.0004011,120]
[422517145,1779018651000,-1270.0,0.00040192,2]
[422517137,1779018651000,-5000.0,0.00040122,15]
[422517131,1779018651000,-2313.0,0.0004004,11]
[422517103,1779018651000,-500.0,0.00039999,31]
[422517105,1779018651000,-594.0668067,0.00039999,31]
[422517114,1779018651000,-324.3,0.0004,120]
[422517112,1779018651000,-160.0,0.0004,120]
[422517111,1779018651000,-200.0,0.0004,16]
[422517113,1779018651000,-383.48,0.0004,120]
[422517115,1779018651000,-204.7,0.0004,120]
[422517116,1779018651000,-329.19,0.0004,120]
[422517121,1779018651000,-648.81820205,0.0004,30]
[422517117,1779018651000,-692.56,0.0004,120]
[422517120,1779018651000,-10000.0,0.0004,90]
[422517119,1779018651000,-201.46380076,0.0004,120]
[422517126,1779018651000,-452.53,0.00040029,120]